fUSD/lending_fUSD_20260429
["ID","MTS","AMOUNT","RATE_DAILY","PERIOD"]
[421312453,1777402273248,-578.65158662,0.00041095,30]
[421312454,1777402273259,-151.0,0.00041095,30]
[421312455,1777402273269,-500.0,0.00041095,30]
[421312456,1777402273279,-833.92535153,0.00041095,30]
[421312457,1777402273289,-151.0,0.00041095,30]
[421312458,1777402273299,-859.80605061,0.00041095,30]
[421312459,1777402273309,-500.0,0.00041095,30]
[421312460,1777402273319,-1651.81367706,0.00041095,30]
[421312461,1777402273329,-200.0,0.00041095,30]
[421312462,1777402273339,-500.0,0.00041095,30]
[421312463,1777402273349,-864.78058953,0.00041095,30]
[421312464,1777402273359,-151.0,0.00041095,30]
[421312465,1777402273369,-151.0,0.00041095,30]
[421312466,1777402273379,-891.61887448,0.00041095,30]
[421312467,1777402273389,-500.0,0.00041095,30]
[421312468,1777402273399,-1712.93078312,0.00041095,30]
[421312469,1777402273409,-200.0,0.00041095,30]
[421312470,1777402273420,-500.0,0.00041095,30]
[421312471,1777402273430,-151.0,0.00041095,30]
[421312472,1777402273440,-896.77747135,0.00041095,30]
[421312473,1777402273451,-151.0,0.00041095,30]
[421312474,1777402273461,-924.60877284,0.00041095,30]
[421312475,1777402273471,-500.0,0.00041095,30]
[421312476,1777402273482,-1776.30922209,0.00041095,30]
[421312477,1777402273492,-200.0,0.00041095,30]
[421312478,1777402273502,-151.0,0.00041095,30]
[421312479,1777402273513,-929.95823779,0.00041095,30]
[421312480,1777402273523,-151.0,0.00041095,30]
[421312481,1777402273534,-958.81929743,0.00041095,30]
[421312482,1777402273544,-500.0,0.00041095,30]
[421312483,1777402273554,-500.0,0.00041095,30]
[421312484,1777402273565,-1842.03266331,0.00041095,30]
[421312485,1777402273576,-200.0,0.00041095,30]
[421312486,1777402273586,-151.0,0.00041095,30]
[421312487,1777402273597,-964.36669259,0.00041095,30]
[421312488,1777402273607,-151.0,0.00041095,30]
[421312489,1777402273617,-994.29561144,0.00041095,30]
[421312490,1777402273627,-500.0,0.00041095,30]
[421312491,1777402273637,-500.0,0.00041095,30]
[421312492,1777402273647,-1910.18787185,0.00041095,30]
[421312493,1777402273657,-176.635683,0.00041095,30]
[421312494,1777402273668,-151.0,0.00041095,30]
[421312495,1777402273678,-1031.08454906,0.00041095,30]
[421312496,1777402273690,-500.0,0.00041095,30]
[421312497,1777402273700,-200.0,0.00041095,30]
[421312498,1777402273711,-500.0,0.00041095,30]
[421312499,1777402273721,-151.0,0.00041095,30]
[421312500,1777402273730,-1980.86482311,0.00041095,30]
[421312501,1777402273741,-151.0,0.00041095,30]
[421312502,1777402273751,-370.35781094,0.00041095,30]
[421312503,1777402273760,-500.0,0.00041095,30]
[421312504,1777402273770,-200.0,0.00041095,30]
[421312505,1777402273780,-500.0,0.00041095,30]
[421312506,1777402273791,-151.0,0.00041095,30]
[421312507,1777402273801,-2054.15682157,0.00041095,30]
[421312508,1777402273812,-151.0,0.00041095,30]
[421312509,1777402273822,-200.0,0.00041095,30]
[421312510,1777402273832,-500.0,0.00041095,30]
[421312511,1777402273842,-471.19114523,0.00041095,30]
[421312512,1777402273853,-151.0,0.00041095,30]
[421312513,1777402273863,-518.5,0.00041095,30]
[421312514,1777402273874,-151.0,0.00041095,30]
[421312515,1777402273884,-537.6845,0.00041095,30]
[421312516,1777402273894,-172.636294,0.00041095,30]
[421312517,1777402273904,-151.0,0.00041095,30]
[421312518,1777402273914,-151.0,0.00041095,30]
[421312519,1777402273925,-557.5788265,0.00041095,30]
[421312520,1777402273935,-156.587,0.00041095,30]
[421312521,1777402273948,-1000.0,0.00041095,30]
[421312522,1777402273958,-151.0,0.00041095,30]
[421312523,1777402273968,-578.20924308,0.00041095,30]
[421312524,1777402273978,-2345.0,0.00041095,30]
[421312525,1777402273988,-160.0,0.00041095,30]
[421312526,1777402273998,-162.380719,0.00041095,30]
[421312527,1777402274008,-1000.0,0.00041095,30]
[421312528,1777402274018,-599.60298507,0.00041095,30]
[421312529,1777402274028,-151.0,0.00041095,30]
[421312530,1777402274038,-1517.05830253,0.00041095,30]
[421312531,1777402274049,-160.0,0.00041095,30]
[421312532,1777402274059,-168.3888056,0.00041095,30]
[421312533,1777402274069,-1000.0,0.00041095,30]
[421312534,1777402274079,-151.0,0.00041095,30]
[421312535,1777402274089,-621.78829552,0.00041095,30]
[421312536,1777402274099,-157.55480065,0.00041095,30]
[421312537,1777402274109,-174.61919141,0.00041095,30]
[421312538,1777402274120,-1000.0,0.00041095,30]
[421312539,1777402274131,-644.79446246,0.00041095,30]
[421312540,1777402274141,-151.0,0.00041095,30]
[421312541,1777402274151,-152.0,0.00041095,30]
[421312542,1777402274162,-151.0,0.00041095,30]
[421312543,1777402274172,-181.08010149,0.00041095,30]
[421312544,1777402274182,-1000.0,0.00041095,30]
[421312545,1777402274192,-668.65185757,0.00041095,30]
[421312546,1777402274203,-156.587,0.00041095,30]
[421312547,1777402274213,-152.0,0.00041095,30]
[421312548,1777402274223,-151.0,0.00041095,30]
[421312549,1777402274233,-187.78006525,0.00041095,30]
[421312550,1777402274243,-1000.0,0.00041095,30]
[421312551,1777402274253,-162.380719,0.00041095,30]
[421312552,1777402274264,-152.0,0.00041095,30]
[421312553,1777402274274,-194.72792766,0.00041095,30]
[421312554,1777402274284,-1000.0,0.00041095,30]
[421312555,1777402274294,-170.0,0.00041095,30]
[421312556,1777402274305,-268.50366443,0.00041095,30]
[421312557,1777402274315,-152.0,0.00041095,30]
[421312558,1777402274326,-201.93286099,0.00041095,30]
[421312559,1777402274337,-1000.0,0.00041095,30]
[421312560,1777402274347,-176.29,0.00041095,30]
[421312561,1777402274358,-151.0,0.00041095,30]
[421312562,1777402274368,-152.0,0.00041095,30]
[421312563,1777402274379,-209.40437684,0.00041095,30]
[421312564,1777402274389,-1000.0,0.00041095,30]
[421312565,1777402274399,-182.81273,0.00041095,30]
[421312566,1777402274744,-156.587,0.00041095,30]
[421312567,1777402274766,-152.0,0.00041095,30]
[421312568,1777402274776,-217.15233878,0.00041095,30]
[421312569,1777402274785,-251.0,0.00041095,30]
[421312570,1777402274795,-1000.0,0.00041095,30]
[421312571,1777402274804,-189.57680101,0.00041095,30]
[421312572,1777402274819,-162.380719,0.00041095,30]
[421312573,1777402274829,-152.0,0.00041095,30]
[421312574,1777402274839,-225.18697532,0.00041095,30]
[421312575,1777402274848,-260.287,0.00041095,30]
[421312576,1777402274857,-196.59114265,0.00041095,30]
[421312577,1777402274867,-168.3888056,0.00041095,30]
[421312578,1777402274876,-152.0,0.00041095,30]
[421312579,1777402274886,-233.51889341,0.00041095,30]
[421312580,1777402274895,-269.917619,0.00041095,30]
[421312581,1777402274905,-203.86501493,0.00041095,30]
[421312582,1777402274914,-174.61919141,0.00041095,30]
[421312583,1777402274923,-152.0,0.00041095,30]
[421312584,1777402274933,-242.15909246,0.00041095,30]
[421312585,1777402274943,-279.9045709,0.00041095,30]
[421312586,1777402274952,-211.40802048,0.00041095,30]
[421312587,1777402274962,-181.08010149,0.00041095,30]
[421312588,1777402274971,-251.11897888,0.00041095,30]
[421312589,1777402274980,-290.26104003,0.00041095,30]
[421312590,1777402274989,-219.23011724,0.00041095,30]
[421312591,1777402274999,-187.78006525,0.00041095,30]
[421312592,1777402275008,-260.4103811,0.00041095,30]
[421312593,1777402275019,-301.00069851,0.00041095,30]
[421312594,1777402275029,-227.34163158,0.00041095,30]
[421312595,1777402275039,-194.72792766,0.00041095,30]
[421312596,1777402275048,-270.0455652,0.00041095,30]
[421312597,1777402275058,-312.13772435,0.00041095,30]
[421312598,1777402275067,-201.93286099,0.00041095,30]
[421312599,1777402275076,-379.922295,0.00041095,30]
[421312600,1777402275086,-323.68682015,0.00041095,30]
[421312601,1777402275096,-209.40437684,0.00041095,30]
[421312602,1777402275106,-423.70677362,0.00041095,30]
[421312603,1777402275116,-217.15233878,0.00041095,30]
[421312604,1777402275125,-225.18697532,0.00041095,30]
[421312605,1777402275135,-233.51889341,0.00041095,30]
[421312606,1777402275144,-242.15909246,0.00041095,30]
[421312607,1777402275154,-151.0,0.00041095,30]
[421312608,1777402275164,-251.11897888,0.00041095,30]
[421312609,1777402275174,-151.0,0.00041095,30]
[421312610,1777402275183,-260.4103811,0.00041095,30]
[421312611,1777402275192,-151.0,0.00041095,30]
[421312612,1777402275202,-270.0455652,0.00041095,30]
[421312613,1777402275212,-151.0,0.00041095,30]
[421312614,1777402275221,-280.03725112,0.00041095,30]
[421312615,1777402275231,-151.0,0.00041095,30]
[421312616,1777402275241,-290.39862941,0.00041095,30]
[421312617,1777402275250,-151.0,0.00041095,30]
[421312618,1777402275259,-301.1433787,0.00041095,30]
[421312619,1777402275269,-151.0,0.00041095,30]
[421312620,1777402275278,-151.0,0.00041095,30]
[421312621,1777402275287,-151.0,0.00041095,30]
[421312622,1777402275298,-151.0,0.00041095,30]
[421312623,1777402275307,-156.587,0.00041095,30]
[421312624,1777402275317,-162.380719,0.00041095,30]
[421312625,1777402275326,-168.3888056,0.00041095,30]
[421312626,1777402275336,-174.61919141,0.00041095,30]
[421312627,1777402275346,-181.08010149,0.00041095,30]
[421312628,1777402275356,-187.78006525,0.00041095,30]
[421312629,1777402275366,-194.72792766,0.00041095,30]
[421312630,1777402275376,-201.93286099,0.00041095,30]
[421312631,1777402275385,-209.40437684,0.00041095,30]
[421312632,1777402275395,-217.15233878,0.00041095,30]
[421312633,1777402275404,-229.96200639,0.00041095,30]
[421312634,1777402275414,-2727.0,0.00041096,120]
[421312635,1777402275424,-500.0,0.00041096,2]
[421312636,1777402275433,-150.0,0.00041096,120]
[421312637,1777402275443,-1500.0,0.00041096,30]
[421312638,1777402275453,-1500.0,0.00041096,30]
[421312639,1777402275463,-1500.0,0.00041096,30]
[421312640,1777402275472,-533.0,0.00041096,30]
[421312641,1777402275482,-200.0,0.00041096,7]
[421312642,1777402275492,-200.0,0.00041096,7]
[421312643,1777402275501,-200.0,0.00041096,7]
[421312644,1777402275511,-1251.98,0.000411,60]
[421312645,1777402275521,-1251.98,0.000411,120]
[421312646,1777402275531,-1504.541045,0.000411,39]
[421312647,1777402275541,-271.59,0.00041111,120]
[421312648,1777402275550,-842.38,0.00041168,120]
[421312649,1777402275560,-25024.09049839,0.000412,2]
[421312650,1777402275570,-1139.4,0.00041217,120]
[421312651,1777402275580,-200.0,0.00041233,10]
[421312652,1777402275589,-842.38,0.00041268,120]
[421312653,1777402275599,-1997.7982,0.00041281,30]
[421312654,1777402275608,-198.0,0.00041288,30]
[421312655,1777402275619,-4524.0,0.000413,2]
[421312656,1777402275628,-311.86,0.000413,2]
[421312657,1777402275638,-311.85,0.000413,2]
[421312658,1777402275648,-311.86,0.000413,2]
[421312659,1777402275657,-682.96,0.000413,2]
[421312660,1777402275667,-682.95,0.000413,2]
[421312661,1777402275677,-273.19,0.000413,2]
[421312662,1777402275687,-3380.41,0.000413,2]
[421312663,1777402275696,-10906.53,0.000413,2]
[421312664,1777402275706,-4771.28,0.000413,2]
[421312665,1777402275716,-514.93,0.000413,2]
[421312666,1777402275726,-967.04,0.000413,14]
[421312667,1777402275736,-1000.0,0.000413,61]
[421312668,1777402275745,-1000.0,0.000413,81]
[421312669,1777402275756,-10002.0,0.0004131,30]
[421312670,1777402275765,-250.0,0.00041315,110]
[421312671,1777402275775,-150.0,0.00041349,30]
[421312672,1777402275785,-915.72264559,0.00041349,30]
[421312673,1777402275795,-150.0,0.00041349,30]
[421312674,1777402275804,-2075.37794434,0.00041349,30]
[421312675,1777402275814,-150.0,0.00041349,30]
[421312676,1777402275823,-18073.5795294,0.00041349,30]
[421312677,1777402275833,-842.38,0.00041368,120]
[421312678,1777402275842,-150.0,0.0004137,30]
[421312679,1777402275852,-260.0,0.0004137,30]
[421312680,1777402275862,-1000.0,0.000414,61]
[421312681,1777402275874,-1000.0,0.000414,81]
[421312682,1777402275883,-1000.0,0.00041414,31]
[421312683,1777402275893,-250.0,0.00041425,110]
[421312684,1777402275902,-4987.85,0.00041452,120]
[421312685,1777402275911,-417.52,0.00041452,120]
[421312686,1777402275921,-153.0,0.00041452,120]
[421312687,1777402275932,-746.17,0.00041452,120]
[421312688,1777402275942,-842.38,0.00041468,120]
[421312689,1777402275952,-177255.10794451,0.000415,30]
[421312690,1777402275961,-1500.0,0.000415,120]
[421312691,1777402275971,-400.0,0.000415,120]
[421312692,1777402275981,-1000.0,0.000415,61]
[421312693,1777402275990,-1000.0,0.000415,81]
[421312694,1777402276000,-200.0,0.00041507,7]
[421312695,1777402276009,-200.0,0.00041507,7]
[421312696,1777402276019,-200.0,0.00041507,7]
[421312697,1777402276030,-731.26,0.00041562,60]
[421312698,1777402276039,-223.44,0.00041562,60]
[421312699,1777402276048,-1101.41625636,0.00041568,7]
[421312700,1777402276058,-842.38,0.00041568,120]
[421312701,1777402276068,-1000.0,0.000416,61]
[421312702,1777402276078,-1000.0,0.000416,81]
[421312703,1777402276088,-1500.0,0.000416,39]
[421312704,1777402276097,-150.01,0.00041601,120]
[421312705,1777402276106,-150.0,0.00041601,120]
[421312706,1777402276116,-150.0,0.00041601,120]
[421312707,1777402276126,-225.85,0.00041601,120]
[421312708,1777402276136,-373.66,0.00041601,120]
[421312709,1777402276145,-197.82,0.00041601,120]
[421312710,1777402276155,-150.0,0.00041601,120]
[421312711,1777402276165,-1057.78,0.00041601,120]
[421312712,1777402276174,-1839.47,0.00041601,120]
[421312713,1777402276184,-876.3,0.00041601,120]
[421312714,1777402276193,-2000.0,0.00041601,120]
[421312715,1777402276204,-2000.0,0.00041601,120]
[421312716,1777402276213,-2000.0,0.00041601,120]
[421312717,1777402276223,-572.39,0.00041601,120]
[421312718,1777402276232,-562.03,0.00041644,120]
[421312719,1777402276241,-368.77,0.00041644,30]
[421312720,1777402276251,-213.89,0.00041644,30]
[421312721,1777402276261,-14299.99999999,0.00041648,31]
[421312722,1777402276270,-842.38,0.00041668,120]
[421312723,1777402276280,-660.03,0.00041688,120]
[421312724,1777402276290,-323.93,0.00041688,120]
[421312725,1777402276301,-2000.0,0.00041688,120]
[421312726,1777402276311,-2000.0,0.00041688,120]
[421312727,1777402276320,-2000.0,0.00041688,120]
[421312728,1777402276330,-1151.53,0.00041688,120]
[421312729,1777402276339,-1337.30371513,0.00041699,30]
[421312730,1777402276348,-152.0,0.000417,120]
[421312731,1777402276358,-210.0541,0.000417,120]
[421312732,1777402276367,-210.0541,0.000417,120]
[421312733,1777402276377,-1000.0,0.000417,61]
[421312734,1777402276387,-1000.0,0.000417,81]
[421312735,1777402276396,-842.38,0.00041768,120]
[421312736,1777402276406,-46114.75720686,0.0004177,10]
[421312737,1777402276416,-7181.92313507,0.00041786,120]
[421312738,1777402276425,-200.0,0.0004179,10]
[421312739,1777402276435,-3325.09810304,0.000418,120]
[421312740,1777402276445,-66489.0782591,0.000418,30]
[421312741,1777402276454,-19226.68872832,0.000418,15]
[421312742,1777402276464,-1000.0,0.000418,61]
[421312743,1777402276474,-880.37,0.000418,120]
[421312744,1777402276484,-209.21,0.00041808,120]
[421312745,1777402276494,-977.17799764,0.00041849,120]
[421312746,1777402276504,-250.0,0.00041863,120]
[421312747,1777402276514,-842.38,0.00041868,120]
[421312748,1777402276523,-1007.14198665,0.0004188,15]
[421312749,1777402276533,-175.9139346,0.000419,120]
[421312750,1777402276543,-264.6,0.000419,31]
[421312751,1777402276552,-209499.19654957,0.000419,7]
[421312752,1777402276561,-667.60076738,0.000419,120]
[421312753,1777402276571,-11216.6330769,0.000419,120]
[421312754,1777402276581,-1000.0,0.000419,61]
[421312755,1777402276590,-328120.4305062,0.000419,30]
[421312756,1777402276600,-599266.53035458,0.000419,7]
[421312757,1777402276609,-187.88957358,0.000419,5]
[421312758,1777402276618,-207.81347717,0.000419,120]
[421312759,1777402276628,-3844.32525757,0.000419,2]
[421312760,1777402276638,-207.81347717,0.000419,120]
[421312761,1777402276647,-176.22671612,0.000419,2]
[421312762,1777402276657,-325.94387673,0.000419,8]
[421312763,1777402276666,-200.0,0.00041922,7]
[421312764,1777402276675,-200.0,0.00041922,7]
[421312765,1777402276685,-200.0,0.00041922,7]
[421312766,1777402276695,-1080.0,0.0004195,60]
[421312767,1777402276705,-842.38,0.00041968,120]
[421312768,1777402276714,-38251.19205262,0.0004197,2]
[421312769,1777402276723,-1963.32359388,0.0004197,2]
[421312770,1777402276732,-250.0,0.00041973,120]
[421312771,1777402276742,-363.89472659,0.0004198,80]
[421312772,1777402276751,-300.0,0.00042,120]
[421312773,1777402276761,-970.0,0.00042,30]
[421312774,1777402276770,-3105.08800202,0.00042,120]
[421312775,1777402276780,-925.06232274,0.00042,120]
[421312776,1777402276789,-42426.2358792,0.00042,120]
[421312777,1777402276799,-1000.0,0.00042,120]
[421312778,1777402276808,-17992.73413925,0.00042,120]
[421312779,1777402276817,-727937.54608772,0.00042,120]
[421312780,1777402276827,-1030.0,0.00042,120]
[421312781,1777402276837,-712.68406956,0.00042,120]
[421312782,1777402276846,-198.0,0.00042,120]
[421312783,1777402276855,-100000.0,0.00042,120]
[421312784,1777402276865,-100000.0,0.00042,120]
[421312785,1777402276875,-100000.0,0.00042,120]
[421312786,1777402276884,-100000.0,0.00042,120]
[421312787,1777402276894,-100000.0,0.00042,120]
[421312788,1777402276903,-100000.0,0.00042,120]
[421312789,1777402276914,-100000.0,0.00042,120]
[421312790,1777402276923,-100000.0,0.00042,120]
[421312791,1777402276932,-100000.0,0.00042,120]
[421312792,1777402276942,-100000.0,0.00042,120]
[421312793,1777402276951,-2301.0,0.00042,120]
[421312794,1777402276961,-26000.0,0.00042,120]
[421312795,1777402276970,-1094.71340878,0.00042,120]
[421312796,1777402276979,-1500.0,0.00042,120]
[421312797,1777402276987,-9444.74016647,0.00042,30]
[421312798,1777402276997,-5140.0,0.00042,60]
[421312799,1777402277007,-2500.0,0.00042,120]
[421312800,1777402277016,-2000.0,0.00042,90]
[421312801,1777402277025,-35000.0,0.00042,30]
[421312802,1777402277034,-301035.94769903,0.00042,120]
[421312803,1777402277044,-208.08895399,0.00042,30]
[421312804,1777402277054,-10001.0,0.00042,120]
[421312805,1777402277063,-1179.81786686,0.00042,120]
[421312806,1777402277073,-123096.89424151,0.00042,120]
[421312807,1777402277082,-1200.09145827,0.00042,3]
[421312808,1777402277091,-200.0,0.00042,30]
[421312809,1777402277101,-5743.661291,0.00042,120]
[421312810,1777402277111,-1541.0,0.00042,120]
[421312811,1777402277121,-276.11061166,0.00042,120]
[421312812,1777402277130,-501012.0,0.00042,61]
[421312813,1777402277140,-6113.1303831,0.00042,120]
[421312814,1777402277150,-150.0,0.00042,4]
[421312815,1777402277159,-2261.373515,0.00042,120]
[421312816,1777402277168,-103992.9289813,0.00042,7]
[421312817,1777402277177,-50000.0,0.00042,120]
[421312818,1777402277186,-50000.0,0.00042,120]
[421312819,1777402277196,-1000.0,0.00042,120]
[421312820,1777402277205,-50000.0,0.00042,120]
[421312821,1777402277215,-50000.0,0.00042,120]
[421312822,1777402277224,-50000.0,0.00042,120]
[421312823,1777402277233,-50000.0,0.00042,120]
[421312824,1777402277243,-50000.0,0.00042,120]
[421312825,1777402277253,-182.0,0.00042,30]
[421312826,1777402277410,-275.24137552,0.00042,2]
[421312827,1777402277426,-50000.0,0.00042,120]
[421312828,1777402277436,-50000.0,0.00042,120]
[421312829,1777402277446,-31000.0,0.00042,120]
[421312830,1777402277455,-50000.0,0.00042,120]
[421312831,1777402277465,-50000.0,0.00042,120]
[421312832,1777402277475,-12612.23654013,0.00042,120]
[421312833,1777402277484,-224642.14138634,0.00042,2]
[421312834,1777402277746,-689.61305566,0.00013699,2]
[421312835,1777402277755,-271.44370727,0.00013699,2]
[421312836,1777402277767,-418.16934839,0.00013699,2]
[421312837,1777402277777,-689.61305566,0.00013699,2]
[421312838,1777402277786,-689.61305566,0.00013699,2]
[421312839,1777402277796,-689.61305566,0.00013699,2]
[421312840,1777402277805,-139965.89570318,0.00042,2]
[421312841,1777402277817,-98167.06086379,0.00042,2]
[421312842,1777402277828,-2533.59916637,0.00042,2]
[421312843,1777402277873,-689.61305566,0.00013699,2]
[421312844,1777402277883,-166218.31985163,0.00042,2]
[421312845,1777402278264,-505.0,0.000136,2]
[421312846,1777402278273,-689.61305566,0.00013699,2]
[421312847,1777402278282,-388.3918931,0.00013699,2]
[421312854,1777403432185,-280.0,8.219e-05,2]
[421312855,1777403432195,-298.13371296,8.219e-05,2]
[421312856,1777403432205,-250.0,8.271e-05,2]
[421312857,1777403432215,-427.25662872,8.556e-05,2]
[421312858,1777403432242,-772.74337128,8.556e-05,2]
[421312859,1777403432252,-2598.901,8.557e-05,2]
[421312860,1777403432261,-214.551,8.557e-05,2]
[421312861,1777403432271,-1832.6626,8.631e-05,2]
[421312862,1777403432284,-377.41,8.688e-05,2]
[421312863,1777403432294,-63.37431672,8.712e-05,2]
[421312864,1777403432306,-349.99568328,8.712e-05,2]
[421312865,1777403432316,-6239.02971027,8.721e-05,2]
[421312866,1777403432325,-500.0,8.73e-05,2]
[421312867,1777403432335,-500.0,8.73e-05,2]
[421312868,1777403432344,-500.0,8.73e-05,2]
[421312869,1777403432354,-500.0,8.73e-05,2]
[421312870,1777403432363,-500.0,8.73e-05,2]
[421312871,1777403432372,-500.0,8.73e-05,2]
[421312872,1777403432382,-500.0,8.73e-05,2]
[421312873,1777403432391,-500.0,8.73e-05,2]
[421312874,1777403432400,-500.0,8.73e-05,2]
[421312875,1777403432409,-500.0,8.73e-05,2]
[421312876,1777403432419,-500.0,8.73e-05,2]
[421312877,1777403432428,-500.0,8.73e-05,2]
[421312878,1777403432437,-500.0,8.73e-05,2]
[421312879,1777403432447,-500.0,8.73e-05,2]
[421312880,1777403432456,-500.0,8.73e-05,2]
[421312881,1777403432466,-500.0,8.73e-05,2]
[421312882,1777403432476,-500.0,8.73e-05,2]
[421312883,1777403432485,-500.0,8.73e-05,2]
[421312884,1777403432494,-500.0,8.73e-05,2]
[421312885,1777403432503,-500.0,8.73e-05,2]
[421312886,1777403432512,-500.0,8.73e-05,2]
[421312887,1777403432522,-500.0,8.73e-05,2]
[421312888,1777403432531,-500.0,8.73e-05,2]
[421312889,1777403432541,-500.0,8.73e-05,2]
[421312890,1777403432550,-500.0,8.73e-05,2]
[421312891,1777403432560,-500.0,8.73e-05,2]
[421312892,1777403432580,-500.0,8.73e-05,2]
[421312893,1777403432590,-500.0,8.73e-05,2]
[421312894,1777403432600,-500.0,8.73e-05,2]
[421312895,1777403432609,-500.0,8.73e-05,2]
[421312896,1777403432619,-500.0,8.73e-05,2]
[421312897,1777403432628,-500.0,8.73e-05,2]
[421312898,1777403432638,-500.0,8.73e-05,2]
[421312899,1777403432648,-500.0,8.73e-05,2]
[421312900,1777403432658,-500.0,8.73e-05,2]
[421312902,1777403432668,-500.0,8.73e-05,2]
[421312904,1777403432677,-500.0,8.73e-05,2]
[421312905,1777403432687,-500.0,8.73e-05,2]
[421312906,1777403432696,-500.0,8.73e-05,2]
[421312907,1777403432706,-500.0,8.73e-05,2]
[421312908,1777403432716,-500.0,8.73e-05,2]
[421312909,1777403432725,-500.0,8.73e-05,2]
[421312910,1777403432736,-500.0,8.73e-05,2]
[421312911,1777403432746,-500.0,8.73e-05,2]
[421312912,1777403432756,-361.45779923,8.73e-05,2]
[421312913,1777403432765,-500.0,8.73e-05,2]
[421312914,1777403432775,-500.0,8.73e-05,2]
[421312915,1777403432784,-500.0,8.73e-05,2]
[421312916,1777403432794,-500.0,8.73e-05,2]
[421312917,1777403432803,-500.0,8.73e-05,2]
[421312918,1777403432812,-500.0,8.73e-05,2]
[421312919,1777403432822,-500.0,8.73e-05,2]
[421312920,1777403432831,-500.0,8.73e-05,2]
[421312921,1777403432841,-500.0,8.73e-05,2]
[421312922,1777403432851,-500.0,8.73e-05,2]
[421312923,1777403432860,-500.0,8.73e-05,2]
[421312924,1777403432869,-250.0,9.041e-05,2]
[421312925,1777403432879,-475.39034168,9.041e-05,2]
[421312926,1777403432888,-250.0,9.041e-05,2]
[421312927,1777403432898,-1680.0,9.412e-05,2]
[421312928,1777403432907,-282.65378863,0.0001,2]
[421312929,1777403432916,-551.74084278,0.0001,2]
[421312930,1777403432925,-497.99453179,0.0001,2]
[421312931,1777403432935,-541.37476463,0.0001,2]
[421312932,1777403432945,-2351.0,0.00010353,2]
[421312933,1777403432954,-272.45833631,0.00010673,2]
[421312934,1777403432963,-500.0,0.00010673,2]
[421312935,1777403432972,-210.18278177,0.00010673,2]
[421312936,1777403432982,-200.17425661,0.00010673,2]
[421312937,1777403432991,-104893.14265492,0.000107,2]
[421312938,1777403433004,-13893.00698439,0.000107,2]
[421312939,1777403433015,-4726.3500637,0.000107,2]
[421312940,1777403433102,-1557.27262659,0.000107,2]
[421312941,1777403433113,-934.45208279,0.000107,2]
[421312942,1777403433125,-1503.14592439,0.000107,2]
[421312943,1777403433136,-522.00245098,0.000107,2]
[421312944,1777403433342,-625.05307491,0.000107,2]
[421312945,1777403433470,-388.9964205,0.000107,2]
[421312946,1777403433483,-370.97500365,0.000107,2]
[421312947,1777403433503,-1123.1044889,0.000107,2]
[421312954,1777403437864,-667.96197469,0.000107,2]
[421312955,1777403437880,-51931.0826484,0.000107,2]
[421312956,1777403437890,-298.70687485,0.000108,2]
[421312957,1777403437900,-150.0,0.000108,2]
[421312958,1777403437910,-150.0,0.000108,2]
[421312959,1777403437920,-150.0,0.000108,2]
[421312960,1777403437930,-150.0,0.000108,2]
[421312961,1777403437939,-150.0,0.000108,2]
[421312962,1777403437949,-150.0,0.000108,2]
[421312963,1777403437959,-150.0,0.000108,2]
[421312964,1777403437969,-150.0,0.00010971,2]
[421312965,1777403437978,-3690.68880464,0.00011099,2]
[421312966,1777403438014,-1678.19997191,0.00011099,2]